[Event "Titled Tuesday Blitz March 29 Early 2022"]
[White "Jeet, Jain"]
[Black "Avalos Parra, Joao"]
[WhiteFideId "5073022"]
[BlackFideId "3402541"]
[WhiteElo "2085"]
[BlackElo "2173"]
[Result "0-1"]
[Round "09"]
[TimeControl "180+1"]
[Date "2022.03.30"]
[WhiteClock "0:00:20"]
[BlackClock "0:00:12"]

1. d4 {[%clk 0:02:52]}  Nf6 {[%clk 0:02:56]} 2. Nf3 {[%clk 0:02:51]}  g6 {[%clk 0:02:48]} 3. Bf4 {[%clk 0:02:51]}  Bg7 {[%clk 0:02:48]} 4. e3 {[%clk 0:02:47]}  c5 {[%clk 0:02:42]} 5. h3 {[%clk 0:02:47]}  Qb6 {[%clk 0:02:41]} 6. Nc3 {[%clk 0:02:42]}  cxd4 {[%clk 0:02:35]} 7. exd4 {[%clk 0:02:40]}  d6 {[%clk 0:02:32]} 8. Bd3 {[%clk 0:02:29]}  Nc6 {[%clk 0:02:28]} 9. O-O {[%clk 0:02:27]}  O-O {[%clk 0:02:24]} 10. d5 {[%clk 0:02:20]}  Nb4 {[%clk 0:02:23]} 11. Bc4 {[%clk 0:02:20]}  Bf5 {[%clk 0:02:21]} 12. Bb3 {[%clk 0:02:20]}  Rac8 {[%clk 0:02:19]} 13. Nd4 {[%clk 0:02:19]}  Bd7 {[%clk 0:01:57]} 14. Re1 {[%clk 0:02:18]}  Rfe8 {[%clk 0:01:55]} 15. Be3 {[%clk 0:02:16]}  Qa5 {[%clk 0:01:49]} 16. a3 {[%clk 0:02:11]}  Na6 {[%clk 0:01:49]} 17. Nce2 {[%clk 0:02:11]}  Ne4 {[%clk 0:01:43]} 18. Ba2 {[%clk 0:02:08]}  Qd8 {[%clk 0:01:29]} 19. c4 {[%clk 0:02:07]}  Nc7 {[%clk 0:01:19]} 20. Bb1 {[%clk 0:02:03]}  Nf6 {[%clk 0:01:18]} 21. Bd3 {[%clk 0:02:00]}  b5 {[%clk 0:01:17]} 22. Nc6 {[%clk 0:01:57]}  Bxc6 {[%clk 0:01:16]} 23. dxc6 {[%clk 0:01:58]}  bxc4 {[%clk 0:01:15]} 24. Bxc4 {[%clk 0:01:59]}  Ne6 {[%clk 0:01:13]} 25. Bxe6 {[%clk 0:01:56]}  fxe6 {[%clk 0:01:14]} 26. Bxa7 {[%clk 0:01:56]}  Rxc6 {[%clk 0:01:11]} 27. Qa4 {[%clk 0:01:53]}  Qa8 {[%clk 0:01:00]} 28. Qb5 {[%clk 0:01:52]}  Rec8 {[%clk 0:00:54]} 29. Be3 {[%clk 0:01:52]}  Nd5 {[%clk 0:00:52]} 30. Nd4 {[%clk 0:01:44]}  Rb6 {[%clk 0:00:53]} 31. Qd7 {[%clk 0:01:42]}  Nxe3 {[%clk 0:00:39]} 32. Qxe6+ {[%clk 0:01:41]}  Kh8 {[%clk 0:00:39]} 33. Qxe3 {[%clk 0:01:36]}  Rxb2 {[%clk 0:00:34]} 34. Rad1 {[%clk 0:01:35]}  Bf6 {[%clk 0:00:31]} 35. Ne2 {[%clk 0:01:29]}  Rcc2 {[%clk 0:00:30]} 36. Ng3 {[%clk 0:01:24]}  Rxf2 {[%clk 0:00:29]} 37. Qxf2 {[%clk 0:01:20]}  Rxf2 {[%clk 0:00:30]} 38. Kxf2 {[%clk 0:01:21]}  Qxa3 {[%clk 0:00:30]} 39. Ne4 {[%clk 0:01:17]}  Be5 {[%clk 0:00:28]} 40. g3 {[%clk 0:01:09]}  Kg7 {[%clk 0:00:27]} 41. h4 {[%clk 0:01:09]}  e6 {[%clk 0:00:25]} 42. Re3 {[%clk 0:01:08]}  Qb2+ {[%clk 0:00:22]} 43. Rd2 {[%clk 0:01:07]}  Qb6 {[%clk 0:00:22]} 44. Kf3 {[%clk 0:01:06]}  Bd4 {[%clk 0:00:17]} 45. Red3 {[%clk 0:01:04]}  e5 {[%clk 0:00:17]} 46. Ng5 {[%clk 0:00:59]}  Qb7+ {[%clk 0:00:15]} 47. Ke2 {[%clk 0:00:59]}  Qd7 {[%clk 0:00:13]} 48. Rf3 {[%clk 0:00:54]}  Qg4 {[%clk 0:00:12]} 49. Kf1 {[%clk 0:00:37]}  h6 {[%clk 0:00:11]} 50. Rf7+ {[%clk 0:00:32]}  Kg8 {[%clk 0:00:11]} 51. Ra2 {[%clk 0:00:30]}  hxg5 {[%clk 0:00:12]} 52. Rc7 {[%clk 0:00:25]}  Qf3+ {[%clk 0:00:12]} 53. Ke1 {[%clk 0:00:24]}  gxh4 {[%clk 0:00:12]} 54. gxh4 {[%clk 0:00:20]}  Bc3+ {[%clk 0:00:12]} 0-1


[Site "https://www.chess.com"]

[Event "Titled Tuesday Blitz March 29 Early 2022"]
[White "Jumabayev, Rinat"]
[Black "Ravi, Teja S."]
[WhiteFideId "13702661"]
[BlackFideId "5017220"]
[WhiteElo "2561"]
[BlackElo "2412"]
[Result "1-0"]
[Round "09"]
[TimeControl "180+1"]
[Date "2022.03.29"]
[WhiteClock "0:01:35"]
[BlackClock "0:00:55"]

1. d4 {[%clk 0:03:00]}  Nf6 {[%clk 0:02:59]} 2. Bg5 {[%clk 0:02:57]}  Ne4 {[%clk 0:02:58]} 3. Bf4 {[%clk 0:02:57]}  d5 {[%clk 0:02:58]} 4. f3 {[%clk 0:02:56]}  Nf6 {[%clk 0:02:58]} 5. Nc3 {[%clk 0:02:56]}  c5 {[%clk 0:02:49]} 6. e4 {[%clk 0:02:51]}  cxd4 {[%clk 0:02:43]} 7. Qxd4 {[%clk 0:02:51]}  Nc6 {[%clk 0:02:43]} 8. Bb5 {[%clk 0:02:51]}  Bd7 {[%clk 0:02:36]} 9. Bxc6 {[%clk 0:02:50]}  Bxc6 {[%clk 0:02:35]} 10. e5 {[%clk 0:02:27]}  Nd7 {[%clk 0:02:33]} 11. Nge2 {[%clk 0:02:25]}  e6 {[%clk 0:02:32]} 12. O-O-O {[%clk 0:02:25]}  Qb6 {[%clk 0:02:23]} 13. Qxb6 {[%clk 0:02:20]}  Nxb6 {[%clk 0:02:24]} 14. Nd4 {[%clk 0:02:20]}  Rc8 {[%clk 0:02:21]} 15. h4 {[%clk 0:02:20]}  h5 {[%clk 0:02:20]} 16. b3 {[%clk 0:02:16]}  Ba3+ {[%clk 0:02:14]} 17. Kb1 {[%clk 0:02:16]}  Bd7 {[%clk 0:02:13]} 18. Ncb5 {[%clk 0:02:07]}  Bc5 {[%clk 0:02:13]} 19. Nxa7 {[%clk 0:02:07]}  Ra8 {[%clk 0:02:01]} 20. Nab5 {[%clk 0:02:07]}  O-O {[%clk 0:01:47]} 21. Nc3 {[%clk 0:01:49]}  Rfc8 {[%clk 0:01:23]} 22. Nce2 {[%clk 0:01:48]}  Ra7 {[%clk 0:01:15]} 23. Rd2 {[%clk 0:01:42]}  Rca8 {[%clk 0:01:13]} 24. c3 {[%clk 0:01:42]}  Rc8 {[%clk 0:01:10]} 25. Rc1 {[%clk 0:01:41]}  Raa8 {[%clk 0:01:08]} 26. Be3 {[%clk 0:01:39]}  f6 {[%clk 0:01:06]} 27. exf6 {[%clk 0:01:36]}  gxf6 {[%clk 0:01:01]} 28. Nc2 {[%clk 0:01:36]}  Be7 {[%clk 0:00:55]} 29. Bxb6 {[%clk 0:01:35]} 1-0


[Site "https://www.chess.com"]

[Event "Titled Tuesday Blitz March 29 Early 2022"]
[White "Koridze, Lile"]
[Black "Thomas, Anysia"]
[WhiteFideId "13612514"]
[BlackFideId "670472"]
[WhiteElo "1999"]
[BlackElo "2002"]
[Result "0-1"]
[Round "09"]
[TimeControl "180+1"]
[Date "2022.03.30"]
[WhiteClock "0:01:42"]
[BlackClock "0:00:08"]

1. d4 {[%clk 0:03:00]}  Nf6 {[%clk 0:02:32]} 2. c4 {[%clk 0:03:00]}  g6 {[%clk 0:02:30]} 3. Nc3 {[%clk 0:02:58]}  d5 {[%clk 0:02:28]} 4. Nf3 {[%clk 0:02:57]}  Bg7 {[%clk 0:02:27]} 5. Bg5 {[%clk 0:02:56]}  Ne4 {[%clk 0:02:26]} 6. cxd5 {[%clk 0:02:56]}  Nxg5 {[%clk 0:02:25]} 7. Nxg5 {[%clk 0:02:57]}  e6 {[%clk 0:02:26]} 8. Qd2 {[%clk 0:02:57]}  h6 {[%clk 0:02:26]} 9. Nf3 {[%clk 0:02:57]}  exd5 {[%clk 0:02:26]} 10. e3 {[%clk 0:02:57]}  O-O {[%clk 0:02:24]} 11. Bd3 {[%clk 0:02:58]}  c5 {[%clk 0:02:20]} 12. dxc5 {[%clk 0:02:56]}  Nc6 {[%clk 0:02:19]} 13. O-O {[%clk 0:02:56]}  d4 {[%clk 0:02:13]} 14. exd4 {[%clk 0:02:54]}  Nxd4 {[%clk 0:02:14]} 15. Nxd4 {[%clk 0:02:50]}  Qxd4 {[%clk 0:02:15]} 16. Rad1 {[%clk 0:02:50]}  Be6 {[%clk 0:02:04]} 17. Ne4 {[%clk 0:02:43]}  Rfd8 {[%clk 0:01:25]} 18. b4 {[%clk 0:02:35]}  Bc4 {[%clk 0:00:45]} 19. Bxc4 {[%clk 0:02:25]}  Qxc4 {[%clk 0:00:39]} 20. Nd6 {[%clk 0:02:25]}  Qg4 {[%clk 0:00:22]} 21. Qd5 {[%clk 0:02:22]}  Rd7 {[%clk 0:00:20]} 22. h3 {[%clk 0:02:18]}  Qxb4 {[%clk 0:00:17]} 23. c6 {[%clk 0:02:18]}  bxc6 {[%clk 0:00:16]} 24. Qxc6 {[%clk 0:02:18]}  Rad8 {[%clk 0:00:16]} 25. Rb1 {[%clk 0:02:02]}  Qxd6 {[%clk 0:00:15]} 26. Qf3 {[%clk 0:02:02]}  Qf6 {[%clk 0:00:14]} 27. Qa3 {[%clk 0:02:02]}  Qe7 {[%clk 0:00:14]} 28. Qb3 {[%clk 0:02:02]}  Rd2 {[%clk 0:00:13]} 29. a4 {[%clk 0:02:01]}  Qf6 {[%clk 0:00:12]} 30. Qb7 {[%clk 0:01:58]}  R8d7 {[%clk 0:00:12]} 31. Qb8+ {[%clk 0:01:58]}  Rd8 {[%clk 0:00:13]} 32. Qb7 {[%clk 0:01:58]}  R2d7 {[%clk 0:00:13]} 33. Qb3 {[%clk 0:01:59]}  Bf8 {[%clk 0:00:13]} 34. Qb5 {[%clk 0:01:59]}  Bd6 {[%clk 0:00:13]} 35. g3 {[%clk 0:01:58]}  Be5 {[%clk 0:00:13]} 36. Kg2 {[%clk 0:01:57]}  Bd4 {[%clk 0:00:13]} 37. Rbd1 {[%clk 0:01:56]}  Rd6 {[%clk 0:00:11]} 38. Rd3 {[%clk 0:01:55]}  Bb6 {[%clk 0:00:11]} 39. Rf3 {[%clk 0:01:55]}  Qe7 {[%clk 0:00:10]} 40. a5 {[%clk 0:01:52]}  Bd4 {[%clk 0:00:09]} 41. Rc1 {[%clk 0:01:49]}  Rf6 {[%clk 0:00:09]} 42. Qb3 {[%clk 0:01:47]}  Rxf3 {[%clk 0:00:09]} 43. Qxf3 {[%clk 0:01:48]}  Qf6 {[%clk 0:00:09]} 44. Rd1 {[%clk 0:01:44]}  Qxf3+ {[%clk 0:00:09]} 45. Kxf3 {[%clk 0:01:45]}  Bf6 {[%clk 0:00:09]} 46. Rc1 {[%clk 0:01:44]}  Rd5 {[%clk 0:00:09]} 47. Rc6 {[%clk 0:01:44]}  Bd8 {[%clk 0:00:07]} 48. a6 {[%clk 0:01:43]}  Bb6 {[%clk 0:00:07]} 49. Ke2 {[%clk 0:01:41]}  Ra5 {[%clk 0:00:07]} 50. Rc8+ {[%clk 0:01:41]}  Kg7 {[%clk 0:00:06]} 51. Rc3 {[%clk 0:01:42]}  Rxa6 {[%clk 0:00:07]} 52. Rf3 {[%clk 0:01:42]}  Ra5 {[%clk 0:00:08]} 0-1


[Site "https://www.chess.com"]

[Event "Titled Tuesday Blitz March 29 Early 2022"]
[White "Kouskoutis, Georgios-Alexandros"]
[Black "Sergienko, Sergey"]
[WhiteFideId "4234049"]
[BlackFideId "4115791"]
[WhiteElo "2130"]
[BlackElo "2193"]
[Result "1-0"]
[Round "09"]
[TimeControl "180+1"]
[Date "2022.03.30"]
[WhiteClock "0:00:03"]
[BlackClock "0:00:02"]

1. c4 {[%clk 0:03:00]}  c5 {[%clk 0:02:58]} 2. g3 {[%clk 0:02:59]}  Nf6 {[%clk 0:02:58]} 3. Bg2 {[%clk 0:03:00]}  d5 {[%clk 0:02:58]} 4. cxd5 {[%clk 0:02:57]}  Nxd5 {[%clk 0:02:58]} 5. Nf3 {[%clk 0:02:58]}  Nc6 {[%clk 0:02:57]} 6. O-O {[%clk 0:02:58]}  e5 {[%clk 0:02:56]} 7. Nc3 {[%clk 0:02:43]}  Nc7 {[%clk 0:02:56]} 8. b3 {[%clk 0:02:39]}  Be7 {[%clk 0:02:55]} 9. Bb2 {[%clk 0:02:39]}  O-O {[%clk 0:02:55]} 10. Rc1 {[%clk 0:02:39]}  f6 {[%clk 0:02:54]} 11. d3 {[%clk 0:02:19]}  Be6 {[%clk 0:02:52]} 12. Qc2 {[%clk 0:02:09]}  Qd7 {[%clk 0:02:49]} 13. Qb1 {[%clk 0:02:07]}  Bh3 {[%clk 0:02:34]} 14. a3 {[%clk 0:01:45]}  Bxg2 {[%clk 0:02:33]} 15. Kxg2 {[%clk 0:01:46]}  Rad8 {[%clk 0:02:22]} 16. Ne4 {[%clk 0:01:31]}  Ne6 {[%clk 0:02:15]} 17. Rfd1 {[%clk 0:01:26]}  b6 {[%clk 0:02:03]} 18. Ba1 {[%clk 0:01:08]}  a5 {[%clk 0:01:51]} 19. e3 {[%clk 0:01:04]}  f5 {[%clk 0:01:35]} 20. Nc3 {[%clk 0:00:56]}  Bd6 {[%clk 0:01:30]} 21. Nb5 {[%clk 0:00:54]}  Qb7 {[%clk 0:01:06]} 22. Kg1 {[%clk 0:00:39]}  Bb8 {[%clk 0:00:55]} 23. Nd2 {[%clk 0:00:33]}  f4 {[%clk 0:00:40]} 24. Ne4 {[%clk 0:00:31]}  Qf7 {[%clk 0:00:33]} 25. Qc2 {[%clk 0:00:15]}  Kh8 {[%clk 0:00:28]} 26. Qe2 {[%clk 0:00:11]}  Qg6 {[%clk 0:00:23]} 27. exf4 {[%clk 0:00:05]}  exf4 {[%clk 0:00:20]} 28. Kh1 {[%clk 0:00:05]}  Ncd4 {[%clk 0:00:15]} 29. Nxd4 {[%clk 0:00:05]}  Nxd4 {[%clk 0:00:15]} 30. Bxd4 {[%clk 0:00:05]}  Rxd4 {[%clk 0:00:15]} 31. Rc4 {[%clk 0:00:06]}  Rd5 {[%clk 0:00:11]} 32. Rg1 {[%clk 0:00:04]}  Rh5 {[%clk 0:00:10]} 33. g4 {[%clk 0:00:03]}  Rh3 {[%clk 0:00:08]} 34. f3 {[%clk 0:00:03]}  Qh6 {[%clk 0:00:07]} 35. Rg2 {[%clk 0:00:03]}  g5 {[%clk 0:00:06]} 36. d4 {[%clk 0:00:02]}  Qg7 {[%clk 0:00:06]} 37. dxc5 {[%clk 0:00:02]}  bxc5 {[%clk 0:00:06]} 38. Qf1 {[%clk 0:00:02]}  Rd8 {[%clk 0:00:06]} 39. Rf2 {[%clk 0:00:02]}  Rh6 {[%clk 0:00:05]} 40. Kg2 {[%clk 0:00:03]}  Re6 {[%clk 0:00:06]} 41. h3 {[%clk 0:00:03]}  Qf7 {[%clk 0:00:05]} 42. Rxc5 {[%clk 0:00:03]}  Rxe4 {[%clk 0:00:05]} 43. fxe4 {[%clk 0:00:03]}  f3+ {[%clk 0:00:05]} 44. Rxf3 {[%clk 0:00:03]}  Rd2+ {[%clk 0:00:05]} 45. Rf2 {[%clk 0:00:04]}  Qe6 {[%clk 0:00:05]} 46. Rxd2 {[%clk 0:00:03]}  Qxe4+ {[%clk 0:00:05]} 47. Qf3 {[%clk 0:00:03]}  Qb1 {[%clk 0:00:02]} 48. Qf8# {[%clk 0:00:03]} 1-0


[Site "https://www.chess.com"]

[Event "Titled Tuesday Blitz March 29 Early 2022"]
[White "Lakshmi C"]
[Black "Kostina, Nadezhda"]
[WhiteFideId "25035347"]
[BlackFideId "4195876"]
[WhiteElo "1775"]
[BlackElo "1982"]
[Result "0-1"]
[Round "09"]
[TimeControl "180+1"]
[Date "2022.03.30"]
[WhiteClock "0:00:01"]
[BlackClock "0:00:08"]

1. e4 {[%clk 0:02:56]}  c5 {[%clk 0:03:00]} 2. Nf3 {[%clk 0:02:56]}  Nc6 {[%clk 0:02:58]} 3. d4 {[%clk 0:02:56]}  cxd4 {[%clk 0:02:58]} 4. Nxd4 {[%clk 0:02:55]}  Nf6 {[%clk 0:02:58]} 5. Nc3 {[%clk 0:02:55]}  d6 {[%clk 0:02:56]} 6. Bg5 {[%clk 0:02:49]}  Qb6 {[%clk 0:02:55]} 7. Nb3 {[%clk 0:02:41]}  e6 {[%clk 0:02:49]} 8. Be2 {[%clk 0:02:36]}  a6 {[%clk 0:02:49]} 9. a4 {[%clk 0:02:33]}  Nb4 {[%clk 0:02:39]} 10. Be3 {[%clk 0:02:27]}  Qc7 {[%clk 0:02:38]} 11. a5 {[%clk 0:02:23]}  Nd7 {[%clk 0:02:21]} 12. Ra4 {[%clk 0:02:19]}  Nc6 {[%clk 0:02:03]} 13. O-O {[%clk 0:00:18]}  Be7 {[%clk 0:01:59]} 14. Qd2 {[%clk 0:00:17]}  O-O {[%clk 0:01:56]} 15. f4 {[%clk 0:00:15]}  Rd8 {[%clk 0:01:45]} 16. Rfa1 {[%clk 0:00:15]}  Nf8 {[%clk 0:01:40]} 17. Rc4 {[%clk 0:00:15]}  Bd7 {[%clk 0:01:35]} 18. Bb6 {[%clk 0:00:14]}  Qb8 {[%clk 0:01:31]} 19. Nd4 {[%clk 0:00:13]}  Rc8 {[%clk 0:01:28]} 20. Nf3 {[%clk 0:00:13]}  Bd8 {[%clk 0:01:21]} 21. Qe3 {[%clk 0:00:10]}  Bxb6 {[%clk 0:01:19]} 22. axb6 {[%clk 0:00:10]}  Re8 {[%clk 0:01:12]} 23. Bd3 {[%clk 0:00:09]}  d5 {[%clk 0:01:07]} 24. Rca4 {[%clk 0:00:09]}  Qd8 {[%clk 0:01:03]} 25. exd5 {[%clk 0:00:07]}  exd5 {[%clk 0:01:02]} 26. Qf2 {[%clk 0:00:07]}  d4 {[%clk 0:00:58]} 27. Nd5 {[%clk 0:00:07]}  Ne6 {[%clk 0:00:24]} 28. Rc4 {[%clk 0:00:05]}  Rc8 {[%clk 0:00:16]} 29. f5 {[%clk 0:00:05]}  Nf8 {[%clk 0:00:16]} 30. Nc7 {[%clk 0:00:05]}  Re3 {[%clk 0:00:15]} 31. Nxd4 {[%clk 0:00:05]}  Rxd3 {[%clk 0:00:14]} 32. cxd3 {[%clk 0:00:05]}  Ne5 {[%clk 0:00:14]} 33. Rc3 {[%clk 0:00:04]}  Bc6 {[%clk 0:00:12]} 34. Nxc6 {[%clk 0:00:03]}  Nxc6 {[%clk 0:00:12]} 35. Re1 {[%clk 0:00:03]}  Qf6 {[%clk 0:00:11]} 36. Qf4 {[%clk 0:00:03]}  Nd4 {[%clk 0:00:11]} 37. Kh1 {[%clk 0:00:02]}  Qxb6 {[%clk 0:00:11]} 38. Nd5 {[%clk 0:00:02]}  Qa5 {[%clk 0:00:08]} 39. Rxc8 {[%clk 0:00:01]}  Qxe1+ {[%clk 0:00:08]} 0-1


[Site "https://www.chess.com"]

[Event "Titled Tuesday Blitz March 29 Early 2022"]
[White "Le Ruyet, Leopold"]
[Black "Lagunov, Evgenij"]
[WhiteFideId "645923"]
[BlackFideId "4125363"]
[WhiteElo "2520"]
[BlackElo "2320"]
[Result "1-0"]
[Round "09"]
[TimeControl "180+1"]
[Date "2022.03.30"]
[WhiteClock "0:00:06"]
[BlackClock "0:00:06"]

1. d4 {[%clk 0:02:18]}  Nf6 {[%clk 0:02:58]} 2. c4 {[%clk 0:02:18]}  e6 {[%clk 0:02:58]} 3. Nc3 {[%clk 0:02:18]}  d5 {[%clk 0:02:57]} 4. cxd5 {[%clk 0:02:18]}  exd5 {[%clk 0:02:56]} 5. Bg5 {[%clk 0:02:17]}  c6 {[%clk 0:02:56]} 6. e3 {[%clk 0:02:17]}  Bf5 {[%clk 0:02:55]} 7. Bd3 {[%clk 0:02:02]}  Bxd3 {[%clk 0:02:53]} 8. Qxd3 {[%clk 0:02:03]}  Be7 {[%clk 0:02:52]} 9. Nf3 {[%clk 0:02:03]}  Nbd7 {[%clk 0:02:52]} 10. O-O {[%clk 0:02:03]}  O-O {[%clk 0:02:51]} 11. Bf4 {[%clk 0:02:02]}  Re8 {[%clk 0:02:49]} 12. h3 {[%clk 0:02:02]}  h6 {[%clk 0:02:48]} 13. Rab1 {[%clk 0:01:59]}  a5 {[%clk 0:02:47]} 14. Rfe1 {[%clk 0:01:56]}  Bf8 {[%clk 0:02:44]} 15. Ne5 {[%clk 0:01:50]}  Nxe5 {[%clk 0:02:41]} 16. Bxe5 {[%clk 0:01:50]}  Nd7 {[%clk 0:02:37]} 17. Bh2 {[%clk 0:01:48]}  Nf6 {[%clk 0:02:36]} 18. f3 {[%clk 0:01:47]}  a4 {[%clk 0:02:32]} 19. Bg3 {[%clk 0:01:43]}  b5 {[%clk 0:02:24]} 20. a3 {[%clk 0:01:42]}  Qb6 {[%clk 0:02:09]} 21. Bf2 {[%clk 0:01:37]}  b4 {[%clk 0:02:05]} 22. axb4 {[%clk 0:01:36]}  Qxb4 {[%clk 0:02:05]} 23. e4 {[%clk 0:01:35]}  dxe4 {[%clk 0:01:57]} 24. fxe4 {[%clk 0:01:34]}  Red8 {[%clk 0:01:54]} 25. Qf3 {[%clk 0:01:25]}  Qb3 {[%clk 0:01:49]} 26. Red1 {[%clk 0:00:59]}  Bb4 {[%clk 0:01:40]} 27. Bh4 {[%clk 0:00:56]}  Be7 {[%clk 0:01:27]} 28. e5 {[%clk 0:00:52]}  Nd5 {[%clk 0:01:26]} 29. Nxd5 {[%clk 0:00:51]}  Bxh4 {[%clk 0:01:22]} 30. Nc3 {[%clk 0:00:33]}  Qe6 {[%clk 0:01:12]} 31. Ne4 {[%clk 0:00:29]}  Be7 {[%clk 0:01:11]} 32. Rbc1 {[%clk 0:00:26]}  Rab8 {[%clk 0:01:06]} 33. Rxc6 {[%clk 0:00:24]}  Qd5 {[%clk 0:00:55]} 34. Rc7 {[%clk 0:00:23]}  Bf8 {[%clk 0:00:46]} 35. Qg4 {[%clk 0:00:20]}  Qe6 {[%clk 0:00:35]} 36. Qf3 {[%clk 0:00:16]}  Rxb2 {[%clk 0:00:30]} 37. Nc5 {[%clk 0:00:13]}  Qe8 {[%clk 0:00:21]} 38. Nb7 {[%clk 0:00:09]}  Rd7 {[%clk 0:00:16]} 39. Rxd7 {[%clk 0:00:08]}  Qxd7 {[%clk 0:00:16]} 40. Na5 {[%clk 0:00:08]}  a3 {[%clk 0:00:14]} 41. d5 {[%clk 0:00:08]}  Bc5+ {[%clk 0:00:13]} 42. Kh1 {[%clk 0:00:07]}  a2 {[%clk 0:00:13]} 43. Nb3 {[%clk 0:00:08]}  Qb5 {[%clk 0:00:12]} 44. Nxc5 {[%clk 0:00:06]}  Qxc5 {[%clk 0:00:11]} 45. d6 {[%clk 0:00:06]}  Rb1 {[%clk 0:00:11]} 46. d7 {[%clk 0:00:06]}  Rb8 {[%clk 0:00:08]} 47. d8=Q+ {[%clk 0:00:05]}  Rxd8 {[%clk 0:00:07]} 48. Rxd8+ {[%clk 0:00:06]}  Kh7 {[%clk 0:00:05]} 49. Qf5+ {[%clk 0:00:06]}  g6 {[%clk 0:00:06]} 50. Qxf7# {[%clk 0:00:06]} 1-0


[Site "https://www.chess.com"]

[Event "Titled Tuesday Blitz March 29 Early 2022"]
[White "Le, Tuan Minh"]
[Black "Matlakov, Maxim"]
[WhiteFideId "12401153"]
[BlackFideId "4168003"]
[WhiteElo "2450"]
[BlackElo "2669"]
[Result "1-0"]
[Round "09"]
[TimeControl "180+1"]
[Date "2022.03.29"]
[WhiteClock "0:00:17"]
[BlackClock "0:00:05"]

1. d4 {[%clk 0:03:00]}  Nf6 {[%clk 0:02:58]} 2. Nf3 {[%clk 0:03:01]}  d5 {[%clk 0:02:58]} 3. Bf4 {[%clk 0:03:02]}  Bf5 {[%clk 0:02:58]} 4. c4 {[%clk 0:03:01]}  e6 {[%clk 0:02:58]} 5. Nc3 {[%clk 0:03:01]}  Bb4 {[%clk 0:02:57]} 6. e3 {[%clk 0:02:58]}  O-O {[%clk 0:02:56]} 7. Be2 {[%clk 0:02:56]}  dxc4 {[%clk 0:02:56]} 8. Bxc4 {[%clk 0:02:56]}  c5 {[%clk 0:02:56]} 9. O-O {[%clk 0:02:56]}  cxd4 {[%clk 0:02:48]} 10. Nxd4 {[%clk 0:02:56]}  Bg6 {[%clk 0:02:47]} 11. Qb3 {[%clk 0:02:44]}  Qe7 {[%clk 0:02:46]} 12. Bg5 {[%clk 0:02:31]}  Nbd7 {[%clk 0:02:37]} 13. Rac1 {[%clk 0:02:23]}  h6 {[%clk 0:02:33]} 14. Bh4 {[%clk 0:02:23]}  Rfc8 {[%clk 0:02:27]} 15. Rfd1 {[%clk 0:02:15]}  Bh5 {[%clk 0:02:09]} 16. Be2 {[%clk 0:02:09]}  Bxe2 {[%clk 0:02:06]} 17. Ndxe2 {[%clk 0:02:05]}  Bxc3 {[%clk 0:01:23]} 18. Nxc3 {[%clk 0:02:06]}  Nc5 {[%clk 0:01:19]} 19. Qb4 {[%clk 0:01:56]}  b6 {[%clk 0:01:09]} 20. h3 {[%clk 0:01:51]}  g5 {[%clk 0:01:07]} 21. Bg3 {[%clk 0:01:50]}  Rd8 {[%clk 0:01:08]} 22. Rd4 {[%clk 0:01:30]}  Qb7 {[%clk 0:00:44]} 23. Rcd1 {[%clk 0:01:23]}  Rxd4 {[%clk 0:00:44]} 24. Qxd4 {[%clk 0:01:24]}  Nfe4 {[%clk 0:00:44]} 25. Be5 {[%clk 0:01:17]}  Nxc3 {[%clk 0:00:43]} 26. Qxc3 {[%clk 0:01:18]}  Qe4 {[%clk 0:00:40]} 27. b4 {[%clk 0:01:03]}  Na4 {[%clk 0:00:39]} 28. Qc7 {[%clk 0:01:01]}  Rf8 {[%clk 0:00:26]} 29. Rd8 {[%clk 0:00:53]}  Qxb4 {[%clk 0:00:15]} 30. Kh2 {[%clk 0:00:40]}  Qc5 {[%clk 0:00:14]} 31. Rxf8+ {[%clk 0:00:40]}  Qxf8 {[%clk 0:00:13]} 32. Qxa7 {[%clk 0:00:41]}  b5 {[%clk 0:00:13]} 33. Qd7 {[%clk 0:00:37]}  Nc5 {[%clk 0:00:04]} 34. Qxb5 {[%clk 0:00:37]}  Ne4 {[%clk 0:00:04]} 35. f3 {[%clk 0:00:36]}  Nd6 {[%clk 0:00:03]} 36. Qb4 {[%clk 0:00:36]}  Nf5 {[%clk 0:00:03]} 37. Qxf8+ {[%clk 0:00:19]}  Kxf8 {[%clk 0:00:04]} 38. e4 {[%clk 0:00:20]}  Ne3 {[%clk 0:00:04]} 39. a4 {[%clk 0:00:20]}  Ke7 {[%clk 0:00:05]} 40. a5 {[%clk 0:00:16]}  Kd7 {[%clk 0:00:05]} 41. Bg7 {[%clk 0:00:16]}  h5 {[%clk 0:00:05]} 42. Bf6 {[%clk 0:00:16]}  g4 {[%clk 0:00:05]} 43. fxg4 {[%clk 0:00:17]}  hxg4 {[%clk 0:00:05]} 44. h4 {[%clk 0:00:18]}  Nc4 {[%clk 0:00:05]} 45. h5 {[%clk 0:00:17]} 1-0


[Site "https://www.chess.com"]

[Event "Titled Tuesday Blitz March 29 Early 2022"]
[White "Legenia, Artem"]
[Black "Omariev, Maksim"]
[WhiteFideId "14136945"]
[BlackFideId "4193423"]
[WhiteElo "1936"]
[BlackElo "2521"]
[Result "0-1"]
[Round "09"]
[TimeControl "180+1"]
[Date "2022.03.30"]
[WhiteClock "0:00:21"]
[BlackClock "0:00:06"]

1. Nf3 {[%clk 0:02:55]}  d5 {[%clk 0:02:59]} 2. c4 {[%clk 0:02:54]}  d4 {[%clk 0:02:54]} 3. e4 {[%clk 0:02:47]}  Nc6 {[%clk 0:02:44]} 4. d3 {[%clk 0:02:47]}  e5 {[%clk 0:02:44]} 5. g3 {[%clk 0:02:46]}  Be7 {[%clk 0:02:27]} 6. Bg2 {[%clk 0:02:45]}  h5 {[%clk 0:02:27]} 7. Na3 {[%clk 0:02:35]}  h4 {[%clk 0:02:22]} 8. Nxh4 {[%clk 0:02:34]}  Bxh4 {[%clk 0:02:22]} 9. gxh4 {[%clk 0:02:34]}  Qxh4 {[%clk 0:02:16]} 10. Qf3 {[%clk 0:02:34]}  Be6 {[%clk 0:01:46]} 11. Qg3 {[%clk 0:02:32]}  Nb4 {[%clk 0:01:16]} 12. Qxh4 {[%clk 0:02:22]}  Rxh4 {[%clk 0:01:14]} 13. Ke2 {[%clk 0:02:15]}  f6 {[%clk 0:00:56]} 14. Bd2 {[%clk 0:02:13]}  a5 {[%clk 0:00:54]} 15. Nb5 {[%clk 0:02:12]}  Kd7 {[%clk 0:00:52]} 16. a3 {[%clk 0:02:11]}  Nc6 {[%clk 0:00:48]} 17. Raf1 {[%clk 0:02:03]}  g5 {[%clk 0:00:47]} 18. Kf3 {[%clk 0:01:32]}  Nge7 {[%clk 0:00:45]} 19. h3 {[%clk 0:01:32]}  a4 {[%clk 0:00:44]} 20. Kg3 {[%clk 0:01:20]}  Nd8 {[%clk 0:00:39]} 21. Nxd4 {[%clk 0:01:13]}  exd4 {[%clk 0:00:38]} 22. f4 {[%clk 0:01:14]}  Ndc6 {[%clk 0:00:12]} 23. fxg5 {[%clk 0:01:13]}  fxg5 {[%clk 0:00:13]} 24. Bxg5 {[%clk 0:01:13]}  Rh7 {[%clk 0:00:13]} 25. h4 {[%clk 0:01:12]}  Ne5 {[%clk 0:00:12]} 26. Rd1 {[%clk 0:01:10]}  b5 {[%clk 0:00:10]} 27. cxb5 {[%clk 0:01:08]}  Rb8 {[%clk 0:00:10]} 28. Rhf1 {[%clk 0:01:05]}  Rxb5 {[%clk 0:00:09]} 29. Rd2 {[%clk 0:01:04]}  Rb3 {[%clk 0:00:09]} 30. Rfd1 {[%clk 0:00:58]}  c5 {[%clk 0:00:09]} 31. Bf4 {[%clk 0:00:54]}  N7g6 {[%clk 0:00:09]} 32. Bg5 {[%clk 0:00:54]}  Kd6 {[%clk 0:00:09]} 33. Bh3 {[%clk 0:00:47]}  Bxh3 {[%clk 0:00:08]} 34. Kxh3 {[%clk 0:00:47]}  Nf3 {[%clk 0:00:08]} 35. Rg2 {[%clk 0:00:47]}  Nxg5+ {[%clk 0:00:07]} 36. Rxg5 {[%clk 0:00:47]}  Nf4+ {[%clk 0:00:07]} 37. Kg4 {[%clk 0:00:46]}  Nxd3 {[%clk 0:00:08]} 38. Rg6+ {[%clk 0:00:46]}  Kc7 {[%clk 0:00:08]} 39. Kf5 {[%clk 0:00:39]}  Rxh4 {[%clk 0:00:06]} 40. Rg7+ {[%clk 0:00:34]}  Kc6 {[%clk 0:00:06]} 41. Rdg1 {[%clk 0:00:32]}  Rf4+ {[%clk 0:00:06]} 42. Ke6 {[%clk 0:00:32]}  Rxe4+ {[%clk 0:00:06]} 43. Kf5 {[%clk 0:00:32]}  Re2 {[%clk 0:00:06]} 44. R1g6+ {[%clk 0:00:30]}  Kb5 {[%clk 0:00:06]} 45. Rb7+ {[%clk 0:00:24]}  Kc4 {[%clk 0:00:07]} 46. Rc7 {[%clk 0:00:23]}  Rexb2 {[%clk 0:00:06]} 47. Rgc6 {[%clk 0:00:21]}  Rxa3 {[%clk 0:00:06]} 48. Ke4 {[%clk 0:00:21]}  Rc3 {[%clk 0:00:06]} 0-1


[Site "https://www.chess.com"]